[Event "Romanian Team Blitz Open 2022"]
[Site "Sebes"]
[Date "2022.12.04"]
[Round "3.27"]
[White "Dumitrascu, Daniel"]
[Black "Danila, Tudor-Gabriel"]
[Result "0-1"]
[ECO "B73"]
[WhiteElo "1694"]
[BlackElo "1939"]
[Annotator "TA"]
[PlyCount "123"]
[EventDate "2022.12.04"]
[EventType "blitz"]
[EventCountry "ROU"]
[SourceTitle "playchess.com"]
[Source "ChessBase"]
[SourceQuality "1"]
[TimeControl "180+2"]

{[%evp 22,123,24,11,39,14,64,18,14,9,16,-7,2,0,0,-16,-18,-21,-14,-14,-12,-8,0,-54,89,-32,19,-56,-7,-4,24,-73,11,-42,-39,-61,-47,-55,-42,-242,-237,-481,-472,-622,-256,-264,-206,-207,-208,-206,-204,-178,-26,-98,212,217,213,205,186,-558,-551,-551,-536,-536,-392,-529,-527,-522,-417,-385,0,-417,-68,-68,-31,-31,-31,-31,-31,-31,-31,-68,-68,-12843,-12843,-12845,-12845,-12846,-12845,-12849,-12849,-12850,-12849,-12850,-12849,-12850,-12849,-27999,-27999,-27999,-27999,-27999,-27999,-27999]} 1. e4 {[%emt 0:00:01]} c5 {[%emt 0:00:01]} 2. Nf3 {[%emt 0:00:04]} d6 {[%emt 0:00:01]} 3. d4 {[%emt 0:00:01]} cxd4 {[%emt 0:00:01]} 4. Nxd4 {[%emt 0:00:01]} Nf6 {[%emt 0:00:02]} 5. Nc3 {[%emt 0:00:01]} g6 {[%emt 0:00:01]} 6. Be3 {[%emt 0:00:03]} Bg7 {[%emt 0:03:08]} 7. Be2 {[%emt 0:00:05]} O-O {[%emt 0:00:00]} 8. O-O {[%emt 0:00:01]} Nc6 {[%emt 0:00:00]} 9. Qd2 {[%emt 0:00:05]} d5 {[%emt 0:00:00]} 10. Nxc6 {[%emt 0:00:26]} bxc6 {[%emt 0:00:00]} 11. e5 {[%emt 0:00:01]} Nd7 {[%emt 0:00:00]} 12. f4 {[%emt 0:00:00]} Qc7 {[%emt 0:00:00] [#] B73: Sicilian Dragon: Classical System without 9 Nb3.} 13. Rad1 $146 {[%emt 0:00:08]} (13. Na4 $5 {[%cal Rc2c4]}) ({Predecessor:} 13. Na4 e6 14. Nc5 Nxc5 15. Bxc5 Rd8 16. Rf3 Bf8 17. Bxf8 Rxf8 18. c3 Qe7 19. Bd3 Bd7 20. Re1 {1-0 (30) Boey,J-Delgado,S Skopje 1972}) 13... Rb8 {[%emt 0:00:00]} (13... Nb6 $11) 14. b3 {[%emt 0:00:01]} (14. Na4 $14) 14... e6 $11 {[%emt 0:00:16] The position is equal.} 15. Na4 {[%emt 0:00:06]} c5 {[%emt 0:00:00]} 16. Bf2 {[%emt 0:00:09]} Rd8 {[%emt 0:00:00]} 17. Bh4 {[%emt 0:00:09]} Re8 $1 {[%emt 0:00:00]} 18. Qc3 {[%emt 0:00:12]} Bb7 {[%emt 0:00:00]} 19. Bb5 {[%emt 0:00:09]} Bc6 {[%emt 0:00:00]} 20. Bxc6 {[%emt 0:00:02]} Qxc6 {[%emt 0:00:00]} 21. Qf3 {[%emt 0:00:19]} Rbc8 {[%emt 0:00:00]} 22. Rd2 {[%emt 0:00:07]} (22. c4 $11) 22... Qb5 {[%emt 0:00:00] [#]} (22... c4 $15 {keeps the upper hand.}) 23. Qe2 {[%emt 0:00:07]} (23. c4 $1 $16 {[%cal Rc4b5]} Qb4 24. Be1) 23... Qa5 {[%emt 0:00:00]} (23... c4 $15) 24. Rfd1 {[%emt 0:00:09]} (24. c4 $11) 24... Nb6 {[%emt 0:00:00]} (24... c4 $15 {was preferrable.}) 25. Nxb6 {[%emt 0:00:10]} axb6 {[%emt 0:00:00]} 26. a4 {[%emt 0:00:05]} (26. c4 $1 $11 {was the only way to keep the balance.}) 26... Qa8 {[%emt 0:00:00]} ({Black should try} 26... Qb4 $17) 27. Rd3 {[%emt 0:00:11]} ({Better is} 27. c4 $11) 27... c4 $15 {[%emt 0:00:00]} 28. Rg3 {[%emt 0:00:03]} cxb3 {[%emt 0:00:00]} 29. cxb3 {[%emt 0:00:00]} Qa7 {[%emt 0:00:00]} (29... Rc6 {simplifies} 30. Rgd3 Rec8 31. Be1 Bf8) 30. f5 $2 {[%emt 0:00:04]} (30. Rf3 $15) 30... exf5 $19 {[%emt 0:00:00]} 31. Rxd5 $2 {[%emt 0:00:04]} (31. Rgd3 {was necessary.} Bxe5 32. Qf1) 31... b5+ {[%emt 0:00:00]} 32. Kh1 {[%emt 0:00:03]} Rc1+ {[%emt 0:00:00]} ({Don't blunder} 32... Bxe5 $2 33. Rgd3 $19) (32... bxa4 $142 {Strongly threatening ...Rc1+.} 33. Rf3 axb3) 33. Rd1 {[%emt 0:00:01]} Rxd1+ {[%emt 0:00:00]} 34. Qxd1 {[%emt 0:00:00] [#]} bxa4 $1 $40 {[%emt 0:00:00][%mdl 128] White is in trouble.} ({Inferior is} 34... Bxe5 35. Rd3 $17) 35. bxa4 {[%emt 0:01:04]} Bxe5 {[%emt 0:00:00]} 36. Rd3 {[%emt 0:00:00]} Qa8 {[%emt 0:00:00]} (36... Bc7 $19 {...Re4 is the strong threat.} 37. Rd4 Qa5) 37. Rd7 {[%emt 0:00:00]} (37. Rd8 $1 $11 {remains equal.} Rxd8 38. Qxd8+ Qxd8 39. Bxd8) 37... Bc3 $2 {[%emt 0:00:00][%mdl 8192]} (37... Qe4 $17 38. Bf2 Qc4) 38. Qb3 $1 $18 {[%emt 0:00:00][%csl LRc3,LRf7]} Rf8 {[%emt 0:00:20]} 39. Qxc3 {[%emt 0:00:00]} Qxa4 40. h3 $4 {[%mdl 8192]} Qxd7 $19 {[%emt 0:00:03][%mdl 4096] Endgame KQR-KQB} 41. Bf6 {[%emt 0:00:00]} Qd1+ {[%emt 0:00:04]} 42. Kh2 {[%emt 0:00:00]} Qh5 {[%emt 0:00:02]} 43. Qe5 {[%emt 0:00:00]} Qh6 {[%emt 0:00:09]} 44. h4 {[%emt 0:00:00]} f4 {[%emt 0:00:06]} 45. Bg5 {[%emt 0:00:00]} Qg7 {[%emt 0:00:01]} (45... Qh5 $19 46. Qxf4 Qe2) 46. Qxf4 $2 {[%emt 0:00:22][%mdl 8192]} (46. Bf6 $1 $11 {and White has nothing to worry.} Qh6 47. Bg5) 46... f6 $2 {[%emt 0:00:02]} ({Black should play} 46... Re8 $19 {White must now prevent ...Qe5.} 47. Bf6 Qf8) 47. Bh6 $15 {[%emt 0:00:00] [#]} Qf7 {[%emt 0:00:01]} 48. Bxf8 {[%emt 0:00:04]} Qxf8 {[%emt 0:00:02] KQ-KQ} 49. Qc4+ {[%emt 0:00:00]} Qf7 {[%emt 0:00:01]} 50. Qc8+ {[%emt 0:00:00]} Kg7 {[%emt 0:00:01]} 51. Qc3 {[%emt 0:00:00]} Qe7 {[%emt 0:00:02] Threatens to win with ...Qe5+.} 52. Qg3 {[%emt 0:00:00][%mdl 8192]} (52. g3 $15) 52... Qe5 $19 {[%emt 0:00:01]} 53. Qxe5 {[%emt 0:00:00]} fxe5 {[%emt 0:00:23] K3P-KPP} 54. Kg3 Kf6 {[%emt 0:00:00]} 55. Kg4 {[%emt 0:00:00]} h5+ {[%emt 0:00:00]} 56. Kf3 {[%emt 0:00:00]} Kf5 {[%emt 0:00:00]} 57. g3 {[%emt 0:00:00]} e4+ {[%emt 0:00:00]} 58. Ke3 {[%emt 0:00:00]} Kg4 {[%emt 0:00:00]} 59. Kxe4 {[%emt 0:00:00]} Kxg3 {[%emt 0:00:00] Black mates.} 60. Ke3 {[%emt 0:00:00]} Kxh4 {[%emt 0:00:14]} 61. Kf4 g5+ {[%emt 0:00:00]} 62. Kf3 {[%emt 0:00:28] Weighted Error Value: White=0.90/Black=0.63} 0-1

[Event "Romanian Team Blitz Open 2022"]
[Site "Sebes"]
[Date "2022.12.04"]
[Round "3.28"]
[White "Mainescu, Andrei-Cristian"]
[Black "Carac, Radu-Ionut"]
[Result "0-1"]
[ECO "B40"]
[WhiteElo "1860"]
[BlackElo "1569"]
[Annotator "NA RC COMBH"]
[PlyCount "74"]
[EventDate "2022.12.04"]
[EventType "blitz"]
[EventCountry "ROU"]
[SourceTitle "playchess.com"]
[Source "ChessBase"]
[SourceQuality "1"]
[TimeControl "180+2"]

1. e4 {[%emt 0:00:02]} c5 {[%emt 0:00:01]} 2. Nf3 {[%emt 0:00:02]} e6 {[%emt 0:00:02]} 3. g3 {[%emt 0:00:01]} a6 {[%emt 0:00:01]} 4. c4 {[%emt 0:00:07]} Qc7 {[%emt 0:00:02]} 5. Bg2 {[%emt 0:00:01]} b6 {[%emt 0:00:04]} 6. O-O {[%emt 0:00:03]} Bb7 {[%emt 0:00:01]} 7. Re1 {[%emt 0:00:01]} d6 {[%emt 0:00:03]} 8. Nc3 {[%emt 0:00:02]} Nc6 {[%emt 0:00:05]} 9. b3 {[%emt 0:00:27]} Nf6 {[%emt 0:00:08]} 10. d4 {[%emt 0:00:13]} cxd4 {[%emt 0:00:05]} 11. Nxd4 {[%emt 0:00:01]} Be7 {[%emt 0:00:05]} 12. Bb2 {[%emt 0:00:08]} O-O {[%emt 0:00:04]} 13. Rc1 {[%emt 0:00:15]} Ne5 {[%emt 0:00:09]} 14. f4 {[%emt 0:00:20]} Ned7 {[%emt 0:00:01]} 15. h3 {[%emt 0:00:28]} Rac8 {[%emt 0:00:08]} 16. f5 {[%emt 0:00:16]} e5 {[%emt 0:00:33]} 17. Nde2 {[%emt 0:00:19]} Nc5 {[%emt 0:00:03]} 18. Qc2 {[%emt 0:00:02]} Rfd8 {[%emt 0:00:32]} 19. g4 {[%emt 0:00:09]} Bc6 {[%emt 0:00:12]} 20. a4 {[%emt 0:00:16]} Qb7 {[%emt 0:00:13]} 21. Ng3 {[%emt 0:00:03]} Nfd7 {[%emt 0:00:07]} 22. Rf1 {[%emt 0:00:04]} Bg5 {[%emt 0:00:04]} 23. Rcd1 {[%emt 0:00:04]} Bf4 {[%emt 0:00:05]} 24. Nge2 {[%emt 0:00:13]} Be3+ {[%emt 0:00:02]} 25. Kh2 {[%emt 0:00:02]} Nf6 {[%emt 0:00:02]} 26. Ng3 {[%emt 0:00:05]} Bf4 {[%emt 0:00:02]} 27. Nce2 {[%emt 0:00:01]} Bxg3+ {[%emt 0:00:11]} 28. Nxg3 {[%emt 0:00:01]} Nfxe4 {[%emt 0:00:03]} 29. Nxe4 {[%emt 0:00:05]} Nxe4 {[%emt 0:00:04]} 30. Qc1 {[%emt 0:00:04]} Nc5 {[%emt 0:00:05]} 31. Bd5 {[%emt 0:00:02]} Bxd5 {[%emt 0:00:04]} 32. Rxd5 {[%emt 0:00:01]} Nxb3 {[%emt 0:00:01]} 33. Qe3 {[%emt 0:00:03]} Rxc4 {[%emt 0:00:06]} 34. Rfd1 {[%emt 0:00:01]} Rc2+ {[%emt 0:00:01]} 35. Kg3 {[%emt 0:00:03]} Rxb2 {[%emt 0:00:12]} 36. f6 {[%emt 0:00:01]} Nd4 {[%emt 0:00:05]} 37. fxg7 {[%emt 0:00:04]} Qxd5 {[%emt 0:00:02]} 0-1

[Event "Romanian Team Blitz Open 2022"]
[Site "Sebes"]
[Date "2022.12.04"]
[Round "3.29"]
[White "Butuza, Stefan Aurelian"]
[Black "Miron, Toma"]
[Result "0-1"]
[ECO "B22"]
[WhiteElo "1529"]
[BlackElo "2188"]
[Annotator "TA"]
[PlyCount "67"]
[EventDate "2022.12.04"]
[EventType "blitz"]
[EventCountry "ROU"]
[SourceTitle "playchess.com"]
[Source "ChessBase"]
[SourceQuality "1"]
[TimeControl "180+2"]

{[%evp 14,67,-12,-8,2,-4,0,0,8,-18,-21,-12,-8,-70,-9,-29,-9,-11,0,18,103,97,108,111,185,185,172,166,166,143,152,48,66,-243,-181,-176,-192,-183,-185,-245,-238,-245,-237,-236,-179,-208,-129,-232,-188,-256,-239,-281,-291,-273,-285,-296]} 1. e4 {[%emt 0:00:02]} c5 {[%emt 0:00:00]} 2. c3 {[%emt 0:00:01]} Nc6 {[%emt 0:00:03]} 3. d4 {[%emt 0:00:01]} cxd4 {[%emt 0:03:05]} 4. cxd4 d5 {[%emt 0:00:00]} 5. exd5 {[%emt 0:00:10]} Qxd5 {[%emt 0:00:00]} 6. Be3 {[%emt 0:00:02]} e5 {[%emt 0:00:00]} 7. Nc3 {[%emt 0:00:06]} Bb4 {[%emt 0:00:00]} 8. dxe5 {[%emt 0:00:15] 8.Nf3 gains popularity.} Bxc3+ {[%emt 0:00:00] B22: Sicilian: 2 c3.} 9. bxc3 {[%emt 0:00:01]} Qxe5 {[%emt 0:00:00]} 10. Rc1 {[%emt 0:00:30]} Be6 {[%emt 0:00:00][%cal Oa8d8] [#] The position is equal.} 11. Qc2 $146 {[%emt 0:00:24]} ({Predecessor:} 11. Qa4 Nf6 12. Nf3 Qe4 13. Qa3 h6 14. c4 Rd8 15. Be2 a6 16. O-O Ng4 17. Rc3 Nxe3 18. Rxe3 {½-½ (64) Bellomo,R (1677)-Muskewitz,B (1879) Berlin 2019}) 11... Nf6 {[%emt 0:00:00] Strongly threatening ...Ng4.} (11... Bd5 {looks sharper.} 12. c4 Be4 13. Nf3 Bxf3 14. gxf3 Nge7) 12. Nf3 {[%emt 0:00:02]} Qa5 {[%emt 0:00:00]} 13. Ra1 {[%emt 0:00:17]} (13. Be2 $11) 13... Rc8 {[%emt 0:00:00] Black is more active.} (13... O-O $15) 14. Bd3 {[%emt 0:00:07]} O-O {[%emt 0:00:00] Threatens to win with ...Ne5.} 15. O-O $1 {[%emt 0:00:02]} g6 {[%emt 0:00:00]} 16. Nd4 {[%emt 0:00:09]} Nd5 {[%emt 0:00:00]} (16... Ne5 $11 {keeps the balance.} 17. Be2 Bc4) 17. Nxe6 $16 {[%emt 0:00:17]} fxe6 {[%emt 0:00:00]} 18. Bxg6 $1 {[%emt 0:01:12][%cal Oe3h6] aiming for Bh6!} Qxc3 {[%emt 0:00:00]} (18... Qc7 $16 {was necessary.}) 19. Bxh7+ $18 {[%emt 0:00:00] A strong pair of Bishops.} Kh8 {[%emt 0:00:00]} 20. Qxc3+ {[%emt 0:00:00]} Nxc3 {[%emt 0:00:00]} 21. Bc2 {[%emt 0:00:00]} e5 {[%emt 0:00:00]} 22. f4 {[%emt 0:00:00]} ({White should try} 22. Rfe1 $16) 22... exf4 $14 {[%emt 0:00:00]} 23. Bxf4 {[%emt 0:00:00][%mdl 8192] [#] This move loses the game for White.} (23. Bf2 $14 {stays ahead.}) 23... Rxf4 $1 {[%emt 0:00:00][%mdl 576]} 24. Rxf4 {[%emt 0:00:00]} Ne2+ {[%emt 0:00:00]} 25. Kf2 {[%emt 0:00:00]} Nxf4 {[%emt 0:00:00]} 26. Rb1 {[%emt 0:00:00]} (26. Be4 $142) 26... Nd4 $19 {[%emt 0:00:00]} 27. Be4 {[%emt 0:00:00] [#]} b6 {[%emt 0:00:00]} 28. Rd1 {[%emt 0:00:00]} Nde6 {[%emt 0:00:00]} 29. Rd7 {[%emt 0:00:00]} Rc7 {[%emt 0:00:00]} 30. Rd6 {[%emt 0:00:00]} (30. Rxc7 $17 Nxc7 31. Ke3) 30... Nc5 {[%emt 0:00:00]} 31. Bf3 {[%emt 0:00:04]} (31. Bf5 {might work better.} Kg7 32. g4) 31... Rf7 {[%emt 0:00:00]} 32. Rh6+ {[%emt 0:00:05]} Kg7 {[%emt 0:00:00]} 33. Rh4 {[%emt 0:00:04]} Nfd3+ {[%emt 0:00:00]} 34. Kg1 {[%emt 0:00:09] Weighted Error Value: White=0.40/Black=0.25 (precise)} 0-1

[Event "Romanian Team Blitz Open 2022"]
[Site "Sebes"]
[Date "2022.12.04"]
[Round "3.30"]
[White "Campian, Cristian"]
[Black "Tatar, Marius Lucian"]
[Result "1-0"]
[ECO "C22"]
[WhiteElo "1998"]
[BlackElo "1405"]
[Annotator "TA"]
[PlyCount "59"]
[EventDate "2022.12.04"]
[EventType "blitz"]
[EventCountry "ROU"]
[SourceTitle "playchess.com"]
[Source "ChessBase"]
[SourceQuality "1"]
[TimeControl "180+2"]

{[%evp 14,58,-42,-65,8,27,58,72,98,86,122,121,162,123,143,137,158,97,111,69,207,140,145,145,133,126,122,85,284,273,389,364,429,430,415,320,341,220,208,218,530,282,356,325,436,439,29999]} 1. e4 {[%emt 0:00:01]} e5 {[%emt 0:00:01]} 2. d4 {[%emt 0:00:00]} exd4 {[%emt 0:00:01]} 3. Qxd4 {[%emt 0:00:01]} Nc6 {[%emt 0:00:02]} 4. Qe3 {[%emt 0:00:01]} Nf6 {[%emt 0:03:06]} 5. Nc3 Bb4 {[%emt 0:00:00]} 6. Bd2 {[%emt 0:00:00]} O-O {[%emt 0:00:04]} 7. O-O-O {[%emt 0:03:13]} Re8 {[%emt 0:00:00]} 8. Qg3 {[%emt 0:00:00]} Bxc3 {[%emt 0:00:00] C22: Centre Game.} (8... Nxe4 $15 9. Nxe4 Rxe4 10. Bxb4 Rxb4) 9. Bxc3 $11 {[%emt 0:00:00]} d6 {[%emt 0:00:00]} 10. f3 {[%emt 0:00:00] [#]} Nh5 $146 {[%emt 0:00:00] White is better.} ({Predecessor:} 10... Be6 11. h4 Nh5 12. Qh2 Qd7 13. g4 Nf6 14. h5 Qe7 15. h6 g6 16. Bb5 Nxg4 17. fxg4 {1-0 (51) Piskaykin,B (1869)-Meinicke,K (1523) Berlin 2016}) 11. Qf2 {[%emt 0:00:00] White is more active.} Be6 {[%emt 0:00:00]} 12. Kb1 {[%emt 0:00:00]} a5 {[%emt 0:00:00]} 13. Ne2 {[%emt 0:00:00]} b5 {[%emt 0:00:00]} 14. g4 {[%emt 0:00:00][%cal Bg2g4,Bg4g5][%mdl 32] Prevents b4.} Nf6 {[%emt 0:00:00] [#]} 15. Nf4 {[%emt 0:00:00]} ({White should play} 15. g5 $1 {[%cal Rg5f6]}) 15... b4 {[%emt 0:00:18]} 16. Bd2 {[%emt 0:00:18]} (16. Nxe6 {simplifies} Rxe6 17. Bd2 Re5 18. Bg2) 16... a4 {[%emt 0:00:00]} (16... Nd7 $14) 17. Nxe6 {[%emt 0:00:00]} Rxe6 {[%emt 0:00:00]} 18. Bb5 {[%emt 0:00:00]} Ne5 {[%emt 0:00:00] [#]} 19. g5 $1 {[%emt 0:00:00]} (19. Bxb4 Qb8 20. Qe2 (20. c4 c6 $11) 20... c6 $11) 19... Nfd7 {[%emt 0:00:00]} 20. f4 {[%emt 0:00:00]} c6 $2 {[%emt 0:00:00]} (20... Ra5 $16) 21. Be2 $18 {[%emt 0:00:00]} b3 {[%emt 0:00:00]} (21... Nc5 {is a better defense.} 22. fxe5 Nxe4) 22. fxe5 {[%emt 0:00:00]} bxa2+ {[%emt 0:00:00]} 23. Ka1 {[%emt 0:00:00] Strongly threatening Bc4.} Nxe5 {[%emt 0:00:00]} 24. Bc3 {[%emt 0:00:00]} (24. Kxa2 Qd7 25. Bc3 Ree8) 24... a3 {[%emt 0:00:00]} 25. Rhf1 {[%emt 0:00:00]} (25. Kxa2 axb2+ 26. Kxb2 (26. Kb1 Re7 $17) 26... Rb8+ 27. Kc1 Qxg5+ 28. Bd2 Qe7 $14) 25... axb2+ {[%emt 0:00:00]} 26. Bxb2 {[%emt 0:00:00][%cal Oe2c4] Black must now prevent Bc4! Chess con chili. This pair of bishops is nice.} Qa5 $2 {[%emt 0:00:00]} (26... Qxg5 27. Qg3 Qe7 28. Bxe5 (28. Rg1 Rg6 $16) 28... Rxe5) 27. Qd4 {[%emt 0:00:00] Hoping for Bc4.} c5 {[%emt 0:00:00]} 28. Qc3 {[%emt 0:00:00]} Qb6 {[%emt 0:00:00]} 29. Bc4 {[%emt 0:00:00]} Nxc4 {[%emt 0:00:06]} (29... Re7 $18 30. Rf2 (30. Bxa2 $2 {loses.} Rea7 $19) 30... Kf8) 30. Qxg7# {[%emt 0:00:00] Weighted Error Value: White=0.35/Black=0.87} 1-0

[Event "Romanian Team Blitz Open 2022"]
[Site "Sebes"]
[Date "2022.12.04"]
[Round "3.32"]
[White "Tarciuc, Ianis-Mihai"]
[Black "Olariu-Chilut, Sofia"]
[Result "1-0"]
[ECO "A25"]
[WhiteElo "1642"]
[BlackElo "1065"]
[Annotator "NA RC COMBH"]
[PlyCount "64"]
[EventDate "2022.12.04"]
[EventType "blitz"]
[EventCountry "ROU"]
[SourceTitle "playchess.com"]
[Source "ChessBase"]
[SourceQuality "1"]
[TimeControl "180+2"]

1. c4 {[%emt 0:00:02]} Nf6 {[%emt 0:00:04]} 2. g3 {[%emt 0:00:02]} e5 {[%emt 0:00:04]} 3. Bg2 {[%emt 0:00:01]} Be7 {[%emt 0:00:07]} 4. Nc3 {[%emt 0:00:02]} Nc6 {[%emt 0:00:04]} 5. d3 {[%emt 0:00:01]} d6 {[%emt 0:00:05]} 6. e3 {[%emt 0:00:07]} Be6 {[%emt 0:00:02]} 7. Nge2 {[%emt 0:00:03]} O-O {[%emt 0:00:02]} 8. O-O {[%emt 0:00:03]} Qd7 {[%emt 0:00:02]} 9. a3 {[%emt 0:00:38]} Bh3 {[%emt 0:00:04]} 10. b4 {[%emt 0:00:02]} Bxg2 {[%emt 0:00:15]} 11. Kxg2 {[%emt 0:00:02]} a6 {[%emt 0:00:12]} 12. Bd2 {[%emt 0:00:14]} Rad8 {[%emt 0:00:08]} 13. e4 {[%emt 0:00:21]} Nd4 {[%emt 0:00:14]} 14. Nxd4 {[%emt 0:00:03]} exd4 {[%emt 0:00:02]} 15. Nd5 {[%emt 0:00:04]} Nxd5 {[%emt 0:00:05]} 16. cxd5 {[%emt 0:00:07]} Qb5 {[%emt 0:00:15]} 17. Qc2 {[%emt 0:00:13]} Rc8 {[%emt 0:00:08]} 18. Qc4 {[%emt 0:00:24]} Qxc4 {[%emt 0:00:06]} 19. dxc4 {[%emt 0:00:02]} Bf6 {[%emt 0:00:15]} 20. Rab1 {[%emt 0:00:23]} c6 {[%emt 0:00:06]} 21. Rfc1 {[%emt 0:00:10]} cxd5 {[%emt 0:00:04]} 22. cxd5 {[%emt 0:00:07]} Rxc1 {[%emt 0:00:03]} 23. Rxc1 {[%emt 0:00:01]} h6 {[%emt 0:00:18]} 24. Rc7 {[%emt 0:00:03]} Rb8 {[%emt 0:00:04]} 25. Bf4 {[%emt 0:00:16]} Be5 {[%emt 0:00:26]} 26. Kf3 {[%emt 0:00:08]} d3 {[%emt 0:00:18]} 27. Bxe5 {[%emt 0:00:01]} dxe5 {[%emt 0:00:02]} 28. Ke3 {[%emt 0:00:02]} b5 {[%emt 0:00:12]} 29. Kxd3 {[%emt 0:00:01]} Rb6 {[%emt 0:00:09]} 30. f4 {[%emt 0:00:01]} f6 {[%emt 0:00:06]} 31. fxe5 {[%emt 0:00:20]} fxe5 32. Re7 {[%emt 0:00:02]} Rf6 {[%emt 0:00:04]} 1-0

[Event "Romanian Team Blitz Open 2022"]
[Site "Sebes"]
[Date "2022.12.04"]
[Round "4.1"]
[White "Lupulescu, Constantin"]
[Black "Miron, Lucian-Costin"]
[Result "1-0"]
[ECO "E14"]
[WhiteElo "2591"]
[BlackElo "2510"]
[Annotator "TA"]
[PlyCount "85"]
[EventDate "2022.12.04"]
[EventType "blitz"]
[EventCountry "ROU"]
[SourceTitle "playchess.com"]
[Source "ChessBase"]
[SourceQuality "1"]
[TimeControl "180+2"]

{[%evp 19,85,-12,13,0,0,0,67,78,82,68,82,87,111,108,106,102,146,152,180,162,215,151,162,128,258,272,266,178,249,258,378,371,345,264,247,89,181,163,162,142,141,121,962,-20,-20,-13,290,288,439,423,421,425,662,662,662,662,656,649,598,590,590,576,548,543,568,550,547,515]} 1. Nf3 {[%emt 0:00:01]} Nf6 {[%emt 0:00:01]} 2. c4 {[%emt 0:00:01]} e6 {[%emt 0:00:01]} 3. b3 {[%emt 0:00:01]} b6 {[%emt 0:00:06]} 4. Bb2 {[%emt 0:00:02]} Bb7 {[%emt 0:00:01]} 5. Nc3 {[%emt 0:00:09]} Be7 {[%emt 0:00:05]} 6. e3 {[%emt 0:00:09]} O-O {[%emt 0:00:03]} 7. d4 {[%emt 0:00:11]} d5 {[%emt 0:00:07]} 8. Bd3 {[%emt 0:00:05]} Nbd7 {[%emt 0:00:16]} 9. O-O {[%emt 0:00:16]} Ne4 {[%emt 0:00:02]} 10. Nd2 {[%emt 0:00:25]} f5 {[%emt 0:00:34]} (10... Nxc3 {is more complex.} 11. Bxc3 c5 12. cxd5 Bxd5 13. Qh5 g6) 11. f3 {[%emt 0:00:04] E14: Queen's Indian: Classical Variation (4 e3).} Nxc3 {[%emt 0:00:06]} 12. Bxc3 {[%emt 0:00:01]} Bf6 {[%emt 0:00:21]} (12... c5 $11) 13. cxd5 $14 {[%emt 0:00:09] White is slightly better.} Bxd5 {[%emt 0:00:34]} 14. e4 {[%emt 0:00:01] Prevents c5.} Bb7 {[%emt 0:00:08]} 15. Bc4 {[%emt 0:00:29] [#]} ({But not} 15. exf5 Nc5 16. Bc4 (16. dxc5 $2 {is the wrong capture.} Bxc3 17. Be4 Qd4+ 18. Kh1 Bxe4 $19) 16... Bxd4+ 17. Bxd4 Qxd4+ 18. Rf2 Rxf5 $15) 15... Re8 $146 {[%emt 0:00:23]} ({Predecessor:} 15... fxe4 16. Bxe6+ Kh8 17. Nxe4 Be7 18. Qc2 Nf6 19. Ng5 Bd5 20. Rfe1 h6 21. Bxd5 Qxd5 {1-0 (51) Meyner,H (1969)-Schnur,G (2131) Oldenburg 2000}) 16. exf5 {[%emt 0:00:09]} Bd5 {[%emt 0:00:01]} 17. fxe6 {[%emt 0:00:07]} Bxe6 {[%emt 0:00:01]} 18. Ne4 {[%emt 0:00:03] Inhibits Nc5.} Kh8 {[%emt 0:00:15]} 19. Rc1 {[%emt 0:00:14]} Bf5 {[%emt 0:00:06]} (19... Bxc4 $142 20. bxc4 a5) 20. Ng3 {[%emt 0:00:13]} Bg6 {[%emt 0:00:02]} 21. f4 {[%emt 0:00:02][%cal Bf3f4,Bf4f5][%mdl 32] [#] Hoping for f5.} h6 {[%emt 0:00:14]} (21... Qe7 $16 {was necessary.} 22. Qg4 Rad8) 22. f5 $18 {[%emt 0:00:04]} Bh7 {[%emt 0:00:01]} 23. Qf3 {[%emt 0:00:02]} c5 {[%emt 0:00:03]} (23... Bg5 $142) 24. dxc5 {[%emt 0:00:13]} Nxc5 {[%emt 0:00:03]} (24... bxc5 $142 25. Rfd1 Bd4+ 26. Bxd4 cxd4 27. Rxd4 Qb6) 25. Rcd1 {[%emt 0:00:07]} Qe7 {[%emt 0:00:00]} 26. Rfe1 {[%emt 0:00:07]} Qf8 {[%emt 0:00:01]} 27. Be6 $2 {[%emt 0:00:10]} (27. Bxf6 $18 {has better winning chances.} Qxf6 28. Rxe8+ Rxe8 29. b4) 27... Red8 {[%emt 0:00:01]} (27... Rad8 $16 {was called for.}) 28. Nh5 $36 {[%emt 0:00:04][%mdl 2048] Black is under strong pressure.} Bxc3 {[%emt 0:00:17]} 29. Qxc3 {[%emt 0:00:02]} Ne4 {[%emt 0:00:03]} 30. Rxd8 {[%emt 0:00:11] Chess con chili. White has more active pieces.} (30. Rxe4 Rxd1+ 31. Kf2 Rad8 $17) 30... Rxd8 $4 {[%emt 0:00:01][%mdl 8192]} (30... Nxc3 $16 31. Rxf8+ Rxf8) 31. Qxg7+ $2 {[%emt 0:00:03]} (31. Rxe4 $18 Qc5+ 32. Qxc5 bxc5 33. Rg4) 31... Qxg7 $11 {[%emt 0:00:02]} 32. Nxg7 {[%emt 0:00:01]} Kxg7 $2 {[%emt 0:00:04][%mdl 8192]} (32... Nf6 $11 {and Black is okay.}) 33. Rxe4 $16 {[%emt 0:00:01][%mdl 4096] Endgame KRB-KRB} Rd2 {[%emt 0:00:01]} (33... Kf6 $142 34. g4 h5) 34. Ra4 {[%emt 0:00:05] White is clearly winning.} a5 {[%emt 0:00:01]} 35. Rc4 {[%emt 0:00:03]} Rxa2 {[%emt 0:00:02]} (35... h5 $142 36. Rc7+ Kh6) 36. Rc7+ $18 {[%emt 0:00:01]} Kh8 {[%emt 0:00:02]} 37. f6 {[%emt 0:00:01] [#] White threatens Rc8+ and mate.} Bg6 {[%emt 0:00:01]} 38. Rc8+ {[%emt 0:00:03]} Kh7 {[%emt 0:00:01]} 39. Bg8+ {[%emt 0:00:01]} Kh8 {[%emt 0:00:01]} 40. Bd5+ {[%emt 0:00:02]} Kh7 {[%emt 0:00:00]} 41. f7 {[%emt 0:00:02]} Ra1+ {[%emt 0:00:04]} 42. Kf2 {[%emt 0:00:01]} Ra2+ {[%emt 0:00:06]} 43. Kf3 {[%emt 0:00:00] Weighted Error Value: White=0.38/Black=0.50} 1-0